[Event "Early-Titled-Tuesday-Blitz-October-17-2023"]
[Site "Chess.com"]
[Date "2023.10.17"]
[Round "4"]
[White "NM_Antelacus"]
[Black "santosalberto1987"]
[Result "0-1"]
[WhiteElo "2094"]
[BlackElo "2440"]
[TimeControl "180+1"]
[EndTime "8:41:26 PDT"]
[Termination "santosalberto1987 won on time"]

1. e4 {[%clk 0:03:00.9]} 1... e6 {[%clk 0:02:59.9]} 2. d4 {[%clk 0:03:00]} 2...
d5 {[%clk 0:03:00.5]} 3. e5 {[%clk 0:03:00.4]} 3... c5 {[%clk 0:03:00.7]} 4. c3
{[%clk 0:03:00.9]} 4... Qb6 {[%clk 0:03:01.1]} 5. Nf3 {[%clk 0:03:00.1]} 5...
Nc6 {[%clk 0:03:01.6]} 6. a3 {[%clk 0:02:59.5]} 6... a5 {[%clk 0:03:01.9]} 7.
Bd3 {[%clk 0:02:57.7]} 7... Bd7 {[%clk 0:03:02.2]} 8. Bc2 {[%clk 0:02:57.4]}
8... a4 {[%clk 0:02:58.3]} 9. O-O {[%clk 0:02:55.9]} 9... Nh6 {[%clk 0:02:56.3]}
10. Bxa4 {[%clk 0:02:42.7]} 10... Nxe5 {[%clk 0:02:54.6]} 11. Bxd7+ {[%clk
0:02:41.2]} 11... Nxd7 {[%clk 0:02:54.7]} 12. Qe2 {[%clk 0:02:28.2]} 12... Nf5
{[%clk 0:02:51.3]} 13. Be3 {[%clk 0:02:27.1]} 13... Nxe3 {[%clk 0:02:48.4]} 14.
fxe3 {[%clk 0:02:26.5]} 14... Be7 {[%clk 0:02:45.4]} 15. Kh1 {[%clk 0:02:19.4]}
15... O-O {[%clk 0:02:45]} 16. Qc2 {[%clk 0:02:15.9]} 16... Bf6 {[%clk
0:02:28.6]} 17. Nbd2 {[%clk 0:02:13.5]} 17... Rac8 {[%clk 0:02:28.5]} 18. Rac1
{[%clk 0:02:01.1]} 18... Qb5 {[%clk 0:02:13.2]} 19. Qb3 {[%clk 0:01:53.5]} 19...
Qxb3 {[%clk 0:02:10.3]} 20. Nxb3 {[%clk 0:01:52.6]} 20... c4 {[%clk 0:02:06.3]}
21. Nbd2 {[%clk 0:01:51.3]} 21... Nb6 {[%clk 0:02:05.5]} 22. e4 {[%clk
0:01:49.8]} 22... Na4 {[%clk 0:02:05.2]} 23. Rc2 {[%clk 0:01:47.1]} 23... b5
{[%clk 0:02:03.7]} 24. exd5 {[%clk 0:01:44.7]} 24... exd5 {[%clk 0:02:03.9]} 25.
Ne5 {[%clk 0:01:44.2]} 25... Rfe8 {[%clk 0:02:00]} 26. Ndf3 {[%clk 0:01:43.3]}
26... Be7 {[%clk 0:01:51.4]} 27. g3 {[%clk 0:01:34.3]} 27... f6 {[%clk
0:01:51.2]} 28. Ng4 {[%clk 0:01:28.8]} 28... Bd6 {[%clk 0:01:49.6]} 29. Kg2
{[%clk 0:01:18.1]} 29... Rc7 {[%clk 0:01:45.4]} 30. Re1 {[%clk 0:01:15.3]} 30...
Rxe1 {[%clk 0:01:42.4]} 31. Nxe1 {[%clk 0:01:14.7]} 31... Re7 {[%clk 0:01:42.7]}
32. Kf2 {[%clk 0:01:13.2]} 32... h5 {[%clk 0:01:37.6]} 33. Ne3 {[%clk
0:01:12.7]} 33... Nb6 {[%clk 0:01:35.6]} 34. Nf3 {[%clk 0:01:10.6]} 34... g6
{[%clk 0:01:31.3]} 35. Re2 {[%clk 0:00:58.2]} 35... Kf7 {[%clk 0:01:25]} 36. Ne1
{[%clk 0:00:55.8]} 36... Re8 {[%clk 0:01:20.6]} 37. N1c2 {[%clk 0:00:54]} 37...
Bf8 {[%clk 0:01:14.8]} 38. Kf3 {[%clk 0:00:52.6]} 38... Bh6 {[%clk 0:01:07.6]}
39. Kf2 {[%clk 0:00:48.4]} 39... Re4 {[%clk 0:01:01.6]} 40. Nb4 {[%clk
0:00:43.1]} 40... Rxe3 {[%clk 0:00:57.3]} 41. Rxe3 {[%clk 0:00:43.1]} 41...
Bxe3+ {[%clk 0:00:57.9]} 42. Kxe3 {[%clk 0:00:43.8]} 42... Ke6 {[%clk
0:00:58.5]} 43. Na6 {[%clk 0:00:22.2]} 43... Kd6 {[%clk 0:00:40.2]} 44. Nc5
{[%clk 0:00:15.3]} 44... Na4 {[%clk 0:00:39.5]} 45. Nxa4 {[%clk 0:00:03.7]}
45... bxa4 {[%clk 0:00:40.4]} 46. Kf4 {[%clk 0:00:03.4]} 46... Ke6 {[%clk
0:00:40.6]} 47. h4 {[%clk 0:00:01.9]} 47... Kf7 {[%clk 0:00:40]} 48. Kf3 {[%clk
0:00:01.4]} 48... g5 {[%clk 0:00:39.5]} 0-1

[Event "Early-Titled-Tuesday-Blitz-October-17-2023"]
[Site "Chess.com"]
[Date "2023.10.17"]
[Round "4"]
[White "Krakozia"]
[Black "Keeper0416"]
[Result "1-0"]
[WhiteElo "3010"]
[BlackElo "2594"]
[TimeControl "180+1"]
[EndTime "8:41:28 PDT"]
[Termination "Krakozia won by resignation"]

1. c4 {[%clk 0:03:00.9]} 1... e5 {[%clk 0:02:49.4]} 2. d3 {[%clk 0:03:00.1]}
2... h6 {[%clk 0:02:42.9]} 3. Nf3 {[%clk 0:02:57.2]} 3... Nc6 {[%clk 0:02:42.1]}
4. Nc3 {[%clk 0:02:56.9]} 4... Nf6 {[%clk 0:02:41.9]} 5. e3 {[%clk 0:02:53.1]}
5... d5 {[%clk 0:02:36.9]} 6. cxd5 {[%clk 0:02:52.5]} 6... Nxd5 {[%clk
0:02:37.8]} 7. Be2 {[%clk 0:02:52.3]} 7... Be7 {[%clk 0:02:33.5]} 8. O-O {[%clk
0:02:50.8]} 8... O-O {[%clk 0:02:26.8]} 9. a3 {[%clk 0:02:50.1]} 9... Be6 {[%clk
0:02:25.3]} 10. Qc2 {[%clk 0:02:46.7]} 10... a5 {[%clk 0:02:22.6]} 11. Rd1
{[%clk 0:02:34.3]} 11... Nb6 {[%clk 0:02:05.9]} 12. b3 {[%clk 0:02:28.3]} 12...
f5 {[%clk 0:01:41.6]} 13. Bb2 {[%clk 0:02:25.7]} 13... Bf6 {[%clk 0:01:41.6]}
14. Rac1 {[%clk 0:02:20.8]} 14... Qe7 {[%clk 0:01:39.5]} 15. Na4 {[%clk
0:01:59.4]} 15... Nxa4 {[%clk 0:01:30]} 16. bxa4 {[%clk 0:02:00.3]} 16... Rfd8
{[%clk 0:01:23.5]} 17. Nd2 {[%clk 0:01:54.5]} 17... Bd5 {[%clk 0:01:09.8]} 18.
e4 {[%clk 0:01:52.8]} 18... Be6 {[%clk 0:01:07.9]} 19. exf5 {[%clk 0:01:51.4]}
19... Bxf5 {[%clk 0:01:08.8]} 20. Qb3+ {[%clk 0:01:46.7]} 20... Kh8 {[%clk
0:00:58.9]} 21. Ne4 {[%clk 0:01:31.3]} 21... Bxe4 {[%clk 0:00:37.5]} 22. dxe4
{[%clk 0:01:32.2]} 22... Rd6 {[%clk 0:00:38]} 23. Rxd6 {[%clk 0:01:26.2]} 23...
cxd6 {[%clk 0:00:38.5]} 24. g3 {[%clk 0:01:20]} 24... Rf8 {[%clk 0:00:37.7]} 25.
Kg2 {[%clk 0:01:19.4]} 25... Nd4 {[%clk 0:00:35.7]} 26. Bxd4 {[%clk 0:01:17.5]}
26... exd4 {[%clk 0:00:36.6]} 27. Bd3 {[%clk 0:01:14.1]} 27... g5 {[%clk
0:00:26]} 28. Qd1 {[%clk 0:00:52.5]} 28... Bg7 {[%clk 0:00:24.5]} 29. Qg4 {[%clk
0:00:47.9]} 29... d5 {[%clk 0:00:17.1]} 30. exd5 {[%clk 0:00:43.4]} 30... Rxf2+
{[%clk 0:00:13.4]} 31. Kxf2 {[%clk 0:00:40.5]} 31... Qe3+ {[%clk 0:00:13.3]} 32.
Kg2 {[%clk 0:00:40.6]} 32... Qxc1 {[%clk 0:00:08.2]} 33. Qe4 {[%clk 0:00:38.9]}
33... Kg8 {[%clk 0:00:04.9]} 34. d6 {[%clk 0:00:33.2]} 34... Qc6 {[%clk
0:00:04.2]} 35. Bc4+ {[%clk 0:00:24.5]} 35... Qxc4 {[%clk 0:00:04.4]} 36. d7
{[%clk 0:00:22.8]} 36... Qa2+ {[%clk 0:00:02.4]} 37. Kh3 {[%clk 0:00:21.5]}
37... g4+ {[%clk 0:00:02.4]} 38. Kxg4 {[%clk 0:00:19.5]} 38... h5+ {[%clk
0:00:01.8]} 39. Kh3 {[%clk 0:00:18.6]} 39... Bf6 {[%clk 0:00:01.3]} 40. Qg6+
{[%clk 0:00:18.5]} 40... Kf8 {[%clk 0:00:01.9]} 41. Qxf6+ {[%clk 0:00:18.4]}
41... Kg8 {[%clk 0:00:02.8]} 1-0

[Event "Early-Titled-Tuesday-Blitz-October-17-2023"]
[Site "Chess.com"]
[Date "2023.10.17"]
[Round "4"]
[White "Grossboss19"]
[Black "Goryachkina"]
[Result "1/2-1/2"]
[WhiteElo "2478"]
[BlackElo "2652"]
[TimeControl "180+1"]
[EndTime "8:41:28 PDT"]
[Termination "Game drawn by repetition"]

1. c4 {[%clk 0:03:00.9]} 1... Nf6 {[%clk 0:02:59.3]} 2. Nc3 {[%clk 0:03:01.1]}
2... c5 {[%clk 0:02:59.1]} 3. g3 {[%clk 0:03:00.6]} 3... g6 {[%clk 0:02:58]} 4.
Bg2 {[%clk 0:03:00.9]} 4... Bg7 {[%clk 0:02:58.4]} 5. Nf3 {[%clk 0:03:01.5]}
5... Nc6 {[%clk 0:02:57.4]} 6. O-O {[%clk 0:03:02.1]} 6... d6 {[%clk 0:02:55.7]}
7. b3 {[%clk 0:03:00.2]} 7... h5 {[%clk 0:02:53.6]} 8. Bb2 {[%clk 0:02:59.5]}
8... Bd7 {[%clk 0:02:39.8]} 9. Nd5 {[%clk 0:02:53.6]} 9... e6 {[%clk 0:02:04]}
10. Nxf6+ {[%clk 0:02:46.7]} 10... Bxf6 {[%clk 0:02:04.2]} 11. Bxf6 {[%clk
0:02:47.6]} 11... Qxf6 {[%clk 0:02:04.6]} 12. e3 {[%clk 0:02:48.2]} 12... h4
{[%clk 0:01:59.1]} 13. d4 {[%clk 0:02:40.6]} 13... h3 {[%clk 0:01:44.9]} 14. Bh1
{[%clk 0:02:39.1]} 14... cxd4 {[%clk 0:01:42.8]} 15. Nxd4 {[%clk 0:02:36.5]}
15... Nxd4 {[%clk 0:01:32.8]} 16. Qxd4 {[%clk 0:02:28.3]} 16... Qxd4 {[%clk
0:01:32.7]} 17. exd4 {[%clk 0:02:28.3]} 17... Bc6 {[%clk 0:01:30]} 18. d5 {[%clk
0:02:28.2]} 18... exd5 {[%clk 0:01:30.1]} 19. Rfe1+ {[%clk 0:02:28]} 19... Kd7
{[%clk 0:01:29.9]} 20. cxd5 {[%clk 0:02:22.8]} 20... Bb5 {[%clk 0:01:30.1]} 21.
a4 {[%clk 0:02:22.8]} 21... Ba6 {[%clk 0:01:29.9]} 22. Bf3 {[%clk 0:02:18.2]}
22... Rac8 {[%clk 0:01:20.6]} 23. Rac1 {[%clk 0:02:15]} 23... Rxc1 {[%clk
0:01:15.3]} 24. Rxc1 {[%clk 0:02:14.6]} 24... f5 {[%clk 0:01:15.1]} 25. Re1
{[%clk 0:02:06.2]} 25... Rc8 {[%clk 0:01:14.7]} 26. b4 {[%clk 0:01:58.1]} 26...
Bd3 {[%clk 0:01:12.2]} 27. g4 {[%clk 0:01:52]} 27... Rc3 {[%clk 0:01:07.7]} 28.
gxf5 {[%clk 0:01:51.6]} 28... Bxf5 {[%clk 0:01:02.7]} 29. Be2 {[%clk 0:01:51]}
29... a6 {[%clk 0:01:01]} 30. b5 {[%clk 0:01:46.1]} 30... axb5 {[%clk
0:00:51.9]} 31. Bxb5+ {[%clk 0:01:45.1]} 31... Kc7 {[%clk 0:00:52.2]} 32. f4
{[%clk 0:01:38.2]} 32... Rc2 {[%clk 0:00:50.2]} 33. Re2 {[%clk 0:01:37.1]} 33...
Rxe2 {[%clk 0:00:34.9]} 34. Bxe2 {[%clk 0:01:38]} 34... Kb6 {[%clk 0:00:35.3]}
35. Kf2 {[%clk 0:01:37.4]} 35... Kc5 {[%clk 0:00:30.2]} 36. Ke3 {[%clk
0:01:37.2]} 36... Bd7 {[%clk 0:00:27]} 37. a5 {[%clk 0:01:34.1]} 37... Bf5
{[%clk 0:00:20.3]} 38. a6 {[%clk 0:01:17.6]} 38... bxa6 {[%clk 0:00:20.3]} 39.
Bxa6 {[%clk 0:01:18.5]} 39... Kxd5 {[%clk 0:00:20.7]} 40. Bb7+ {[%clk
0:01:18.7]} 40... Kc5 {[%clk 0:00:21.1]} 41. Bf3 {[%clk 0:01:16.4]} 41... d5
{[%clk 0:00:21.1]} 42. Be2 {[%clk 0:01:16.6]} 42... d4+ {[%clk 0:00:18]} 43. Kd2
{[%clk 0:01:16.4]} 43... Kd5 {[%clk 0:00:18.2]} 44. Bf3+ {[%clk 0:01:15.4]}
44... Kc4 {[%clk 0:00:18.5]} 45. Be2+ {[%clk 0:01:10]} 45... d3 {[%clk
0:00:17.5]} 46. Bf3 {[%clk 0:01:08.5]} 46... Kd4 {[%clk 0:00:17.8]} 47. Bb7
{[%clk 0:01:07.6]} 47... Be4 {[%clk 0:00:13.4]} 48. Bc8 {[%clk 0:01:07.5]} 48...
Bg2 {[%clk 0:00:11.4]} 49. f5 {[%clk 0:01:04]} 49... gxf5 {[%clk 0:00:11.4]} 50.
Bxf5 {[%clk 0:01:03.6]} 50... Bf1 {[%clk 0:00:11.7]} 51. Ke1 {[%clk 0:00:56.6]}
51... Be2 {[%clk 0:00:10.3]} 52. Kd2 {[%clk 0:00:52.7]} 52... Bf1 {[%clk
0:00:10.5]} 53. Ke1 {[%clk 0:00:53]} 53... Bg2 {[%clk 0:00:06.9]} 54. Kd2 {[%clk
0:00:52.6]} 54... Bf1 {[%clk 0:00:06.9]} 1/2-1/2

[Event "Early-Titled-Tuesday-Blitz-October-17-2023"]
[Site "Chess.com"]
[Date "2023.10.17"]
[Round "4"]
[White "tptagain"]
[Black "ChessQueen"]
[Result "1-0"]
[WhiteElo "2942"]
[BlackElo "2722"]
[TimeControl "180+1"]
[EndTime "8:41:29 PDT"]
[Termination "tptagain won by resignation"]

1. d4 {[%clk 0:03:00.9]} 1... Nf6 {[%clk 0:02:59.2]} 2. Nf3 {[%clk 0:03:01.5]}
2... d5 {[%clk 0:02:58.6]} 3. c3 {[%clk 0:03:01.5]} 3... g6 {[%clk 0:02:57.2]}
4. Bf4 {[%clk 0:02:59.4]} 4... Bg7 {[%clk 0:02:56.7]} 5. e3 {[%clk 0:02:59.6]}
5... Nc6 {[%clk 0:02:54.7]} 6. h3 {[%clk 0:02:58.9]} 6... O-O {[%clk 0:02:48.6]}
7. Be2 {[%clk 0:02:58.2]} 7... Ne4 {[%clk 0:02:48.5]} 8. O-O {[%clk 0:02:52]}
8... f6 {[%clk 0:02:46.5]} 9. Bh2 {[%clk 0:02:51.4]} 9... Nd6 {[%clk 0:02:31.1]}
10. Qb3 {[%clk 0:02:46.7]} 10... Be6 {[%clk 0:02:29.9]} 11. Nbd2 {[%clk
0:02:43.4]} 11... Na5 {[%clk 0:02:26.8]} 12. Qa3 {[%clk 0:02:40.4]} 12... b6
{[%clk 0:02:21.9]} 13. Rfd1 {[%clk 0:02:30.9]} 13... Qe8 {[%clk 0:02:11.5]} 14.
b3 {[%clk 0:02:22.5]} 14... g5 {[%clk 0:02:06.6]} 15. Rac1 {[%clk 0:02:19]}
15... h5 {[%clk 0:01:58.8]} 16. c4 {[%clk 0:02:15.8]} 16... g4 {[%clk
0:01:55.2]} 17. hxg4 {[%clk 0:02:14.2]} 17... hxg4 {[%clk 0:01:56.1]} 18. Nh4
{[%clk 0:01:58]} 18... Qh5 {[%clk 0:01:52.1]} 19. Bg3 {[%clk 0:01:39.5]} 19...
dxc4 {[%clk 0:01:43.2]} 20. bxc4 {[%clk 0:01:37.1]} 20... Kf7 {[%clk 0:01:29.9]}
21. c5 {[%clk 0:01:00.7]} 21... Nf5 {[%clk 0:01:27]} 22. Nxf5 {[%clk 0:01:01]}
22... Bxf5 {[%clk 0:01:27.9]} 23. Nf1 {[%clk 0:01:01.3]} 23... Rh8 {[%clk
0:01:17.7]} 24. Nh2 {[%clk 0:01:01.4]} 24... Rac8 {[%clk 0:01:08.2]} 25. d5
{[%clk 0:01:01.4]} 25... Qg6 {[%clk 0:00:54.6]} 26. Ba6 {[%clk 0:00:37]} 26...
Rcg8 {[%clk 0:00:23.2]} 27. cxb6 {[%clk 0:00:33.7]} 27... cxb6 {[%clk
0:00:15.5]} 28. Rc7 {[%clk 0:00:33.4]} 28... Bf8 {[%clk 0:00:16]} 29. d6 {[%clk
0:00:33.4]} 29... Rxh2 {[%clk 0:00:13.9]} 30. Bxh2 {[%clk 0:00:33.3]} 30... g3
{[%clk 0:00:13.1]} 31. Bxg3 {[%clk 0:00:32.6]} 31... Qh5 {[%clk 0:00:13.8]} 32.
dxe7 {[%clk 0:00:21.5]} 32... Qxd1+ {[%clk 0:00:12.7]} 33. Bf1 {[%clk
0:00:22.2]} 33... Bd7 {[%clk 0:00:04.3]} 34. exf8=Q+ {[%clk 0:00:16.2]} 34...
Rxf8 {[%clk 0:00:05.2]} 35. Bd6 {[%clk 0:00:13.2]} 35... Rc8 {[%clk 0:00:05.4]}
36. Rxd7+ {[%clk 0:00:13]} 36... Ke6 {[%clk 0:00:03.6]} 37. Re7+ {[%clk
0:00:11.4]} 1-0

[Event "Early-Titled-Tuesday-Blitz-October-17-2023"]
[Site "Chess.com"]
[Date "2023.10.17"]
[Round "4"]
[White "ploxoi"]
[Black "DenisQ"]
[Result "0-1"]
[WhiteElo "2477"]
[BlackElo "2649"]
[TimeControl "180+1"]
[EndTime "8:41:29 PDT"]
[Termination "DenisQ won by resignation"]

1. d4 {[%clk 0:03:00.9]} 1... d5 {[%clk 0:02:58.3]} 2. c4 {[%clk 0:03:01.5]}
2... c6 {[%clk 0:02:58.3]} 3. Nf3 {[%clk 0:03:01.8]} 3... Nf6 {[%clk 0:02:58]}
4. e3 {[%clk 0:03:01.7]} 4... Bf5 {[%clk 0:02:57.3]} 5. Nc3 {[%clk 0:03:01.1]}
5... e6 {[%clk 0:02:57.2]} 6. Nh4 {[%clk 0:03:01.7]} 6... Be4 {[%clk 0:02:57]}
7. f3 {[%clk 0:02:57.9]} 7... Bg6 {[%clk 0:02:56.6]} 8. g3 {[%clk 0:02:56.5]}
8... Nbd7 {[%clk 0:02:55.8]} 9. Be2 {[%clk 0:02:55.1]} 9... Bd6 {[%clk
0:02:54.5]} 10. O-O {[%clk 0:02:54.8]} 10... dxc4 {[%clk 0:02:52.4]} 11. Bxc4
{[%clk 0:02:52.3]} 11... O-O {[%clk 0:02:45]} 12. Nxg6 {[%clk 0:02:51.8]} 12...
hxg6 {[%clk 0:02:45.9]} 13. e4 {[%clk 0:02:51.3]} 13... c5 {[%clk 0:02:35.7]}
14. d5 {[%clk 0:02:47.2]} 14... Nb6 {[%clk 0:02:31.3]} 15. Bb3 {[%clk
0:02:07.9]} 15... c4 {[%clk 0:02:30.1]} 16. Bc2 {[%clk 0:02:07.7]} 16... exd5
{[%clk 0:02:30]} 17. exd5 {[%clk 0:02:03.5]} 17... Bc5+ {[%clk 0:02:27.8]} 18.
Kg2 {[%clk 0:02:04.1]} 18... Nbxd5 {[%clk 0:02:26.6]} 19. Nxd5 {[%clk
0:01:52.4]} 19... Qxd5 {[%clk 0:02:20.2]} 20. Bf4 {[%clk 0:01:49.2]} 20... Rad8
{[%clk 0:02:15.1]} 21. Qxd5 {[%clk 0:01:44.9]} 21... Nxd5 {[%clk 0:02:14.6]} 22.
Bg5 {[%clk 0:01:39.5]} 22... f6 {[%clk 0:01:59.2]} 23. Bd2 {[%clk 0:01:39]}
23... Be3 {[%clk 0:01:49.5]} 24. Ba5 {[%clk 0:01:17.8]} 24... b6 {[%clk
0:01:47.3]} 25. Be1 {[%clk 0:01:17.3]} 25... Bd4 {[%clk 0:01:46.7]} 26. Bf2
{[%clk 0:01:14.1]} 26... Bxf2 {[%clk 0:01:21.3]} 27. Kxf2 {[%clk 0:01:15]} 27...
Nb4 {[%clk 0:01:20.5]} 28. Bxg6 {[%clk 0:01:12.3]} 28... Rd2+ {[%clk 0:01:20.3]}
29. Ke3 {[%clk 0:01:09.8]} 29... Rxb2 {[%clk 0:01:20.2]} 30. Rab1 {[%clk
0:01:09.8]} 30... c3 {[%clk 0:00:56.9]} 31. a3 {[%clk 0:00:49.9]} 31... Nc2+
{[%clk 0:00:48.4]} 32. Kd3 {[%clk 0:00:40.1]} 32... Nxa3 {[%clk 0:00:47.6]} 33.
Kxc3 {[%clk 0:00:17.3]} 33... Rxb1 {[%clk 0:00:45.1]} 34. Bxb1 {[%clk
0:00:16.7]} 34... Rc8+ {[%clk 0:00:44.2]} 35. Kb3 {[%clk 0:00:16.3]} 35... Nxb1
{[%clk 0:00:43.9]} 36. Rxb1 {[%clk 0:00:17.2]} 36... Kf7 {[%clk 0:00:43.2]} 37.
Ra1 {[%clk 0:00:17.2]} 37... a5 {[%clk 0:00:42.4]} 38. Ra2 {[%clk 0:00:14.3]}
38... g5 {[%clk 0:00:39.3]} 39. Ka4 {[%clk 0:00:14.5]} 39... Rc4+ {[%clk
0:00:38.2]} 40. Kb5 {[%clk 0:00:14.9]} 40... Rb4+ {[%clk 0:00:38.4]} 41. Kc6
{[%clk 0:00:15.6]} 41... a4 {[%clk 0:00:38.8]} 42. Ra3 {[%clk 0:00:10.5]} 42...
b5 {[%clk 0:00:38.7]} 43. Kc5 {[%clk 0:00:09.8]} 43... Rb3 {[%clk 0:00:38.7]}
44. Ra2 {[%clk 0:00:09]} 44... a3 {[%clk 0:00:38.9]} 45. Ra1 {[%clk 0:00:08.8]}
45... b4 {[%clk 0:00:39.2]} 46. Kc4 {[%clk 0:00:09.4]} 46... Rb2 {[%clk
0:00:39.3]} 47. f4 {[%clk 0:00:09.2]} 47... gxf4 {[%clk 0:00:38.6]} 48. gxf4
{[%clk 0:00:10.1]} 48... a2 {[%clk 0:00:38.7]} 0-1

[Event "Early-Titled-Tuesday-Blitz-October-17-2023"]
[Site "Chess.com"]
[Date "2023.10.17"]
[Round "4"]
[White "WiktoriaPOL"]
[Black "topin8"]
[Result "0-1"]
[WhiteElo "2283"]
[BlackElo "2497"]
[TimeControl "180+1"]
[EndTime "8:41:29 PDT"]
[Termination "topin8 won on time"]

1. c4 {[%clk 0:02:57.1]} 1... c5 {[%clk 0:02:59.8]} 2. Nf3 {[%clk 0:02:56]} 2...
Nc6 {[%clk 0:02:59.9]} 3. Nc3 {[%clk 0:02:54.5]} 3... g6 {[%clk 0:02:52.4]} 4.
e3 {[%clk 0:02:53.7]} 4... Bg7 {[%clk 0:02:52]} 5. d4 {[%clk 0:02:53.5]} 5...
cxd4 {[%clk 0:02:47.1]} 6. exd4 {[%clk 0:02:53]} 6... d6 {[%clk 0:02:47.6]} 7.
d5 {[%clk 0:02:49.3]} 7... Na5 {[%clk 0:02:40.7]} 8. Be3 {[%clk 0:02:43]} 8...
b6 {[%clk 0:02:40.4]} 9. Bd4 {[%clk 0:02:41.6]} 9... Nf6 {[%clk 0:02:39.2]} 10.
Be2 {[%clk 0:02:23.8]} 10... O-O {[%clk 0:02:38.8]} 11. O-O {[%clk 0:02:22.3]}
11... e5 {[%clk 0:02:06.4]} 12. dxe6 {[%clk 0:02:17.5]} 12... Bxe6 {[%clk
0:02:06.2]} 13. b3 {[%clk 0:02:10.3]} 13... d5 {[%clk 0:02:06.2]} 14. cxd5
{[%clk 0:01:58.8]} 14... Nxd5 {[%clk 0:02:07.1]} 15. Bxg7 {[%clk 0:01:56.1]}
15... Kxg7 {[%clk 0:02:08]} 16. Qd4+ {[%clk 0:01:51.5]} 16... Qf6 {[%clk
0:01:49.5]} 17. Qxf6+ {[%clk 0:01:43.8]} 17... Nxf6 {[%clk 0:01:49.2]} 18. Nd4
{[%clk 0:01:42.3]} 18... Bd7 {[%clk 0:01:45]} 19. Bf3 {[%clk 0:01:39.9]} 19...
Rac8 {[%clk 0:01:41]} 20. Ncb5 {[%clk 0:01:37.5]} 20... Bxb5 {[%clk 0:01:06.9]}
21. Nxb5 {[%clk 0:01:35.4]} 21... a6 {[%clk 0:01:07.5]} 22. Nd4 {[%clk
0:01:23.4]} 22... Rfd8 {[%clk 0:01:05.9]} 23. Rfd1 {[%clk 0:01:20.5]} 23... Nd5
{[%clk 0:00:55.5]} 24. Nf5+ {[%clk 0:00:20.4]} 24... gxf5 {[%clk 0:00:56.4]} 25.
Bxd5 {[%clk 0:00:20.1]} 25... Rc5 {[%clk 0:00:51.1]} 26. Bf3 {[%clk 0:00:12.9]}
26... Rxd1+ {[%clk 0:00:52]} 27. Bxd1 {[%clk 0:00:10.9]} 27... Nc6 {[%clk
0:00:50.8]} 28. Be2 {[%clk 0:00:05.5]} 28... a5 {[%clk 0:00:29.5]} 29. a4 {[%clk
0:00:05.4]} 29... Kf6 {[%clk 0:00:17.3]} 30. Bc4 {[%clk 0:00:05.2]} 30... Ne5
{[%clk 0:00:17.1]} 31. Bb5 {[%clk 0:00:04.1]} 31... Rc3 {[%clk 0:00:14.1]} 32.
Rb1 {[%clk 0:00:04.3]} 32... Rc2 {[%clk 0:00:10.4]} 33. Kf1 {[%clk 0:00:04.2]}
33... Ng4 {[%clk 0:00:10.7]} 34. f3 {[%clk 0:00:03]} 34... Ne3+ {[%clk
0:00:10.6]} 35. Ke1 {[%clk 0:00:02.5]} 35... Nxg2+ {[%clk 0:00:10.7]} 36. Kd1
{[%clk 0:00:02.8]} 36... Ne3+ {[%clk 0:00:11.6]} 37. Ke1 {[%clk 0:00:03]} 37...
Rxh2 {[%clk 0:00:12.1]} 38. Bc6 {[%clk 0:00:01.6]} 38... Rh1+ {[%clk 0:00:11.4]}
0-1

[Event "Early-Titled-Tuesday-Blitz-October-17-2023"]
[Site "Chess.com"]
[Date "2023.10.17"]
[Round "4"]
[White "RobertoJBM"]
[Black "Karttunen"]
[Result "1-0"]
[WhiteElo "2801"]
[BlackElo "2568"]
[TimeControl "180+1"]
[EndTime "8:41:31 PDT"]
[Termination "RobertoJBM won by resignation"]

1. e4 {[%clk 0:03:00.9]} 1... e6 {[%clk 0:02:58.9]} 2. d4 {[%clk 0:03:00.6]}
2... d5 {[%clk 0:02:59.2]} 3. Nd2 {[%clk 0:03:00.9]} 3... Nc6 {[%clk 0:02:57.3]}
4. Ngf3 {[%clk 0:02:58.9]} 4... Nf6 {[%clk 0:02:57.1]} 5. e5 {[%clk 0:02:59.2]}
5... Nd7 {[%clk 0:02:56.7]} 6. c3 {[%clk 0:02:57.2]} 6... Na5 {[%clk 0:02:55.4]}
7. b4 {[%clk 0:02:54.7]} 7... Nc6 {[%clk 0:02:53.8]} 8. Bd3 {[%clk 0:02:54.1]}
8... a5 {[%clk 0:02:43.8]} 9. b5 {[%clk 0:02:53.9]} 9... Ncb8 {[%clk 0:02:36.5]}
10. O-O {[%clk 0:02:53.2]} 10... a4 {[%clk 0:02:27.3]} 11. c4 {[%clk 0:02:47.2]}
11... dxc4 {[%clk 0:02:21.4]} 12. Nxc4 {[%clk 0:02:48.1]} 12... Be7 {[%clk
0:02:07]} 13. Qe2 {[%clk 0:02:46.9]} 13... c6 {[%clk 0:01:51.5]} 14. Bg5 {[%clk
0:01:51.9]} 14... Bxg5 {[%clk 0:01:43.2]} 15. Nd6+ {[%clk 0:01:50.7]} 15... Kf8
{[%clk 0:01:42.9]} 16. Nxg5 {[%clk 0:01:50.6]} 16... Qxg5 {[%clk 0:01:40.2]} 17.
Nxc8 {[%clk 0:01:43.7]} 17... Qf4 {[%clk 0:01:18.9]} 18. Qe3 {[%clk 0:01:39]}
18... g5 {[%clk 0:01:12.4]} 19. g3 {[%clk 0:01:37.6]} 19... Qxe3 {[%clk
0:00:43.3]} 20. fxe3 {[%clk 0:01:38.5]} 20... Kg7 {[%clk 0:00:42.8]} 21. Nd6
{[%clk 0:01:37.2]} 21... Rf8 {[%clk 0:00:35.2]} 22. Nxb7 {[%clk 0:01:27]} 22...
cxb5 {[%clk 0:00:35.3]} 23. Bxb5 {[%clk 0:01:27.4]} 23... Nb6 {[%clk 0:00:35.3]}
24. Nd6 {[%clk 0:01:24.5]} 24... Nd5 {[%clk 0:00:26.7]} 25. e4 {[%clk
0:01:22.4]} 25... Nc3 {[%clk 0:00:26.5]} 26. Rac1 {[%clk 0:01:15.8]} 26... Nxb5
{[%clk 0:00:24.9]} 27. Nxb5 {[%clk 0:01:16.7]} 27... Na6 {[%clk 0:00:24.7]} 28.
Nc7 {[%clk 0:01:04.4]} 28... Ra7 {[%clk 0:00:22.8]} 29. Nxa6 {[%clk 0:00:59.5]}
29... Rxa6 {[%clk 0:00:23.1]} 30. Rc7 {[%clk 0:01:00]} 30... Ra5 {[%clk
0:00:20.5]} 31. Kf2 {[%clk 0:00:54]} 31... a3 {[%clk 0:00:20.5]} 32. Ke3 {[%clk
0:00:53.8]} 32... Rb5 {[%clk 0:00:19.2]} 33. Rf2 {[%clk 0:00:50.9]} 33... Ra5
{[%clk 0:00:16.7]} 34. h4 {[%clk 0:00:49.5]} 34... h6 {[%clk 0:00:16.5]} 35.
hxg5 {[%clk 0:00:48.1]} 35... hxg5 {[%clk 0:00:17.4]} 36. Rb7 {[%clk 0:00:45.5]}
36... Ra4 {[%clk 0:00:16]} 37. d5 {[%clk 0:00:43]} 37... exd5 {[%clk 0:00:13.9]}
38. exd5 {[%clk 0:00:43.9]} 38... Kg6 {[%clk 0:00:13.6]} 39. Rf6+ {[%clk
0:00:40.9]} 39... Kg7 {[%clk 0:00:13.7]} 40. Rf2 {[%clk 0:00:34.6]} 40... Kg6
{[%clk 0:00:13.5]} 41. e6 {[%clk 0:00:33.5]} 41... Ra5 {[%clk 0:00:11]} 42.
Rfxf7 {[%clk 0:00:28]} 42... Re8 {[%clk 0:00:10.6]} 43. Kd4 {[%clk 0:00:27.6]}
43... Rd8 {[%clk 0:00:10.1]} 44. Rg7+ {[%clk 0:00:20.9]} 44... Kh5 {[%clk
0:00:09.9]} 45. Rgd7 {[%clk 0:00:19.8]} 45... Rf8 {[%clk 0:00:09.5]} 46. e7
{[%clk 0:00:19.6]} 46... Re8 {[%clk 0:00:09.2]} 47. Ke5 {[%clk 0:00:19.6]} 1-0